Workbook

Sheet Resumen de escenario
B2: Resumen de escenario
D3: Valores actuales: | E3: original | F3: pantalones | G3: camisas
E4: Creado por sena el 02/11/2012 | F4: Creado por sena el 02/11/2012 | G4: Creado por sena el 02/11/2012
B5: Celdas cambiantes:
C6: ='Funcion Si y formato condiciona'!I7 -> Pantalones | D6: 0.04 | E6: 0.04 | F6: 0.0585 | G6: 0.04
C7: ='Funcion Si y formato condiciona'!I8 -> Camisas | D7: 0.06 | E7: 0.06 | F7: 0.06 | G7: 0.075
B8: Celdas de resultado:
C9: ='Funcion Si y formato condiciona'!A3 -> CAMISAS | D9: 233856 | E9: 233856 | F9: 233856 | G9: 292320
C10: ='Funcion Si y formato condiciona'!A4 -> CAMISAS | D10: 0 | E10: 0 | F10: 0 | G10: 0
C11: ='Funcion Si y formato condiciona'!A5 -> CAMISAS | D11: 0 | E11: 0 | F11: 0 | G11: 0
C12: ='Funcion Si y formato condiciona'!A6 -> CAMISAS | D12: 184800 | E12: 184800 | F12: 184800 | G12: 231000
C13: ='Funcion Si y formato condiciona'!A7 -> CAMISAS | D13: 887040 | E13: 887040 | F13: 887040 | G13: 1108800
C14: ='Funcion Si y formato condiciona'!A8 -> CAMISAS | D14: 0 | E14: 0 | F14: 0 | G14: 0
C15: ='Funcion Si y formato condiciona'!A9 -> CAMISAS | D15: 0 | E15: 0 | F15: 0 | G15: 0
C16: ='Funcion Si y formato condiciona'!A10 -> CAMISAS | D16: 665280 | E16: 665280 | F16: 665280 | G16: 831600
C17: ='Funcion Si y formato condiciona'!A11 -> CHAQUETAS | D17: 0 | E17: 0 | F17: 0 | G17: 0
C18: ='Funcion Si y formato condiciona'!A12 -> CHAQUETAS | D18: 0 | E18: 0 | F18: 0 | G18: 0
C19: ='Funcion Si y formato condiciona'!A13 -> CHAQUETAS | D19: 0 | E19: 0 | F19: 0 | G19: 0
C20: ='Funcion Si y formato condiciona'!A14 -> CHAQUETAS | D20: 0 | E20: 0 | F20: 0 | G20: 0
C21: ='Funcion Si y formato condiciona'!A15 -> CHAQUETAS | D21: 0 | E21: 0 | F21: 0 | G21: 0
C22: ='Funcion Si y formato condiciona'!A16 -> PANTALONES | D22: 322560 | E22: 322560 | F22: 471744 | G22: 322560
C23: ='Funcion Si y formato condiciona'!A17 -> PANTALONES | D23: 7168000 | E23: 7168000 | F23: 10483200 | G23: 7168000
C24: ='Funcion Si y formato condiciona'!A18 -> PANTALONES | D24: 505344 | E24: 505344 | F24: 739065.6 | G24: 505344
C25: ='Funcion Si y formato condiciona'!A19 -> PANTALONES | D25: 0 | E25: 0 | F25: 0 | G25: 0
C26: ='Funcion Si y formato condiciona'!A20 -> PANTALONES | D26: 0 | E26: 0 | F26: 0 | G26: 0
C27: ='Funcion Si y formato condiciona'!A21 -> PIJAMAS | D27: 0 | E27: 0 | F27: 0 | G27: 0
C28: ='Funcion Si y formato condiciona'!A22 -> PIJAMAS | D28: 0 | E28: 0 | F28: 0 | G28: 0
C29: ='Funcion Si y formato condiciona'!A23 -> PIJAMAS | D29: 0 | E29: 0 | F29: 0 | G29: 0
C30: ='Funcion Si y formato condiciona'!A24 -> PIJAMAS | D30: 0 | E30: 0 | F30: 0 | G30: 0
C31: ='Funcion Si y formato condiciona'!A25 -> PIJAMAS | D31: 0 | E31: 0 | F31: 0 | G31: 0
B32: Notas: La columna de valores actuales representa los valores de las celdas cambiantes
B33: en el momento en que se creó el Informe resumen de escenario. Las celdas cambiantes de
B34: cada escenario se muestran en gris.

Sheet tabla dinamica
A3: Etiquetas de fila | B3: Suma de CANTIDAD PRODUCIDA | C3: Suma de COSTO UNITARIO | D3: Suma de BONIFICACION | E3: Suma de UTILIDAD | F3: Suma de UTILIDAD UNITARIA | G3: Suma de Campo1
A4: CAMISAS | B4: 1719 | C4: 183000 | D4: 1737120 | E4: 40953480 | F4: 2478480 | G4: 39399360.1
A5: CARMEN ESCOBAR | B5: 100 | C5: 22000 | D5: 0 | E5: 2442000 | F5: 264000 | G5: 2464000.1
A6: 2464000 | B6: 100 | C6: 22000 | D6: 0 | E6: 2442000 | F6: 264000 | G6: 2464000.1
A7: DANIELA JIMEMEZ | B7: 600 | C7: 22000 | D7: 887040 | E7: 15649040 | F7: 2471040 | G7: 14784000.1
A8: 14784000 | B8: 600 | C8: 22000 | D8: 887040 | E8: 15649040 | F8: 2471040 | G8: 14784000.1
A9: DIONICIA PUERTA | B9: 450 | C9: 22000 | D9: 665280 | E9: 11731280 | F9: 1853280 | G9: 11088000.1
A10: 11088000 | B10: 450 | C10: 22000 | D10: 665280 | E10: 11731280 | F10: 1853280 | G10: 11088000.1
A11: LUCIA JIMEMEZ | B11: 100 | C11: 22000 | D11: 0 | E11: 2442000 | F11: 264000 | G11: 2464000.1
A12: 2464000 | B12: 100 | C12: 22000 | D12: 0 | E12: 2442000 | F12: 264000 | G12: 2464000.1
A13: MARIELA PUERTA | B13: 120 | C13: 29000 | D13: 0 | E13: -29000 | F13: -3480000 | G13: 0.1
A14: (en blanco) | B14: 120 | C14: 29000 | D14: 0 | E14: -29000 | F14: -3480000 | G14: 0.1
A15: PATRICIA ESCOBAR | B15: 125 | C15: 22000 | D15: 184800 | E15: 3242800 | F15: 514800 | G15: 3080000.1
A16: 3080000 | B16: 125 | C16: 22000 | D16: 184800 | E16: 3242800 | F16: 514800 | G16: 3080000.1
A17: ROCIO QUIROZ | B17: 114 | C17: 22000 | D17: 0 | E17: 2786960 | F17: 300960 | G17: 2808960.1
A18: 2808960 | B18: 114 | C18: 22000 | D18: 0 | E18: 2786960 | F18: 300960 | G18: 2808960.1
A19: SAMIRA RESTREPO | B19: 110 | C19: 22000 | D19: 0 | E19: 2688400 | F19: 290400 | G19: 2710400.1
A20: 2710400 | B20: 110 | C20: 22000 | D20: 0 | E20: 2688400 | F20: 290400 | G20: 2710400.1
A21: CHAQUETAS | B21: 1481 | C21: 149000 | D21: 0 | E21: 46357320 | F21: 4982820 | G21: 46506320.1
A22: CLEOTILDE QUINTERO | B22: 109 | C22: 18500 | D22: 0 | E22: 2239980 | F22: 241980 | G22: 2258480.1
A23: 2258480 | B23: 109 | C23: 18500 | D23: 0 | E23: 2239980 | F23: 241980 | G23: 2258480.1
A24: DIANA JIMEMEZ | B24: 300 | C24: 18500 | D24: 0 | E24: 6197500 | F24: 666000 | G24: 6216000.1
A25: 6216000 | B25: 300 | C25: 18500 | D25: 0 | E25: 6197500 | F25: 666000 | G25: 6216000.1
A26: ELSA QUINTERO | B26: 320 | C26: 18500 | D26: 0 | E26: 6611900 | F26: 710400 | G26: 6630400.1
A27: 6630400 | B27: 320 | C27: 18500 | D27: 0 | E27: 6611900 | F27: 710400 | G27: 6630400.1
A28: GLORIA QUINTERO | B28: 250 | C28: 75000 | D28: 0 | E28: 20925000 | F28: 2250000 | G28: 21000000.1
A29: 21000000 | B29: 250 | C29: 75000 | D29: 0 | E29: 20925000 | F29: 2250000 | G29: 21000000.1
A30: MARTA QUIROZ | B30: 502 | C30: 18500 | D30: 0 | E30: 10382940 | F30: 1114440 | G30: 10401440.1
A31: 10401440 | B31: 502 | C31: 18500 | D31: 0 | E31: 10382940 | F31: 1114440 | G31: 10401440.1
A32: PANTALONES | B32: 9444 | C32: 100000 | D32: 7995904 | E32: 219441504 | F32: 30661504 | G32: 211545600.1
A33: DEYANIRA ACEVEDO | B33: 220 | C33: 20000 | D33: 0 | E33: 4908000 | F33: 528000 | G33: 4928000.1
A34: 4928000 | B34: 220 | C34: 20000 | D34: 0 | E34: 4908000 | F34: 528000 | G34: 4928000.1
A35: GLADYS QUINTERO | B35: 8000 | C35: 20000 | D35: 7168000 | E35: 186348000 | F35: 26368000 | G35: 179200000.1
A36: 179200000 | B36: 8000 | C36: 20000 | D36: 7168000 | E36: 186348000 | F36: 26368000 | G36: 179200000.1
A37: MIRIAM QUIROZ | B37: 564 | C37: 20000 | D37: 505344 | E37: 13118944 | F37: 1858944 | G37: 12633600.1
A38: 12633600 | B38: 564 | C38: 20000 | D38: 505344 | E38: 13118944 | F38: 1858944 | G38: 12633600.1
A39: MONICA PRIETO | B39: 300 | C39: 20000 | D39: 0 | E39: 6700000 | F39: 720000 | G39: 6720000.1
A40: 6720000 | B40: 300 | C40: 20000 | D40: 0 | E40: 6700000 | F40: 720000 | G40: 6720000.1
A41: PABLO ESCOBAR | B41: 360 | C41: 20000 | D41: 322560 | E41: 8366560 | F41: 1186560 | G41: 8064000.1
A42: 8064000 | B42: 360 | C42: 20000 | D42: 322560 | E42: 8366560 | F42: 1186560 | G42: 8064000.1
A43: PIJAMAS | B43: 1830 | C43: 119000 | D43: 0 | E43: 48298600 | F43: 5187600 | G43: 48417600.1
A44: CLAUDIA PUERTA | B44: 465 | C44: 25000 | D44: 0 | E44: 12995000 | F44: 1395000 | G44: 13020000.1
A45: 13020000 | B45: 465 | C45: 25000 | D45: 0 | E45: 12995000 | F45: 1395000 | G45: 13020000.1
A46: DIANA JIMEMEZ | B46: 420 | C46: 19000 | D46: 0 | E46: 8918600 | F46: 957600 | G46: 8937600.1
A47: 8937600 | B47: 420 | C47: 19000 | D47: 0 | E47: 8918600 | F47: 957600 | G47: 8937600.1
A48: GLORIA QUINTERO | B48: 200 | C48: 25000 | D48: 0 | E48: 5575000 | F48: 600000 | G48: 5600000.1
A49: 5600000 | B49: 200 | C49: 25000 | D49: 0 | E49: 5575000 | F49: 600000 | G49: 5600000.1
A50: LAURA JIMEMEZ | B50: 45 | C50: 25000 | D50: 0 | E50: 1235000 | F50: 135000 | G50: 1260000.1
A51: 1260000 | B51: 45 | C51: 25000 | D51: 0 | E51: 1235000 | F51: 135000 | G51: 1260000.1
A52: TERESA QUINTERO | B52: 700 | C52: 25000 | D52: 0 | E52: 19575000 | F52: 2100000 | G52: 19600000.1
A53: 19600000 | B53: 700 | C53: 25000 | D53: 0 | E53: 19575000 | F53: 2100000 | G53: 19600000.1
A54: Total general | B54: 14474 | C54: 551000 | D54: 9733024 | E54: 355050904 | F54: 43310404 | G54: 345868880.1

Sheet Funcion Si y formato condiciona
A1: CONFECCIONES LA GRAN ESTAFA
A2: ARTICULO | B2: PRODUCTOR | C2: CANTIDAD PRODUCIDA | D2: COSTO UNITARIO | E2: PRECIO DE VENTA | F2: BONIFICACION | G2: UTILIDAD | H2: UTILIDAD UNITARIA
A3: CAMISAS | B3: MARIELA PUERTA | C3: 120 | D3: 29000 | F3: =IF(A3=$I$8,IF(C3>$J$8,E3*$K$8,0),IF(A3=$I$7,IF(C3>$J$7,E3*$K$7,0),0)) -> 0 | G3: =(E3+F3)-D3 -> -29000 | H3: =(E3+F3)-(D3*C3) -> -3480000 | J3: 1.12
A4: CAMISAS | B4: ROCIO QUIROZ | C4: 114 | D4: 22000 | E4: =(D4*$J$3)*C4 -> 2808960 | F4: =IF(A4=$I$8,IF(C4>$J$8,E4*$K$8,0),IF(A4=$I$7,IF(C4>$J$7,E4*$K$7,0),0)) -> 0 | G4: =(E4+F4)-D4 -> 2786960 | H4: =(E4+F4)-(D4*C4) -> 300960
A5: CAMISAS | B5: LUCIA JIMEMEZ | C5: 100 | D5: 22000 | E5: 2464000 | F5: 0 | G5: 2442000 | H5: 264000
A6: CAMISAS | B6: PATRICIA ESCOBAR | C6: 125 | D6: 22000 | E6: 3080000 | F6: 184800 | G6: 3242800 | H6: 514800
A7: CAMISAS | B7: DANIELA JIMEMEZ | C7: 600 | D7: 22000 | E7: 14784000 | F7: 887040 | G7: 15649040 | H7: 2471040 | I7: Pantalones | J7: 300 | K7: 0.04
A8: CAMISAS | B8: CARMEN ESCOBAR | C8: 100 | D8: 22000 | E8: 2464000 | F8: 0 | G8: 2442000 | H8: 264000 | I8: Camisas | J8: 115 | K8: 0.06
A9: CAMISAS | B9: SAMIRA RESTREPO | C9: 110 | D9: 22000 | E9: 2710400 | F9: 0 | G9: 2688400 | H9: 290400
A10: CAMISAS | B10: DIONICIA PUERTA | C10: 450 | D10: 22000 | E10: 11088000 | F10: 665280 | G10: 11731280 | H10: 1853280
A11: CHAQUETAS | B11: GLORIA QUINTERO | C11: 250 | D11: 75000 | E11: 21000000 | F11: 0 | G11: 20925000 | H11: 2250000
A12: CHAQUETAS | B12: DIANA JIMEMEZ | C12: 300 | D12: 18500 | E12: 6216000 | F12: 0 | G12: 6197500 | H12: 666000
A13: CHAQUETAS | B13: MARTA QUIROZ | C13: 502 | D13: 18500 | E13: 10401440 | F13: 0 | G13: 10382940 | H13: 1114440
A14: CHAQUETAS | B14: ELSA QUINTERO | C14: 320 | D14: 18500 | E14: 6630400 | F14: 0 | G14: 6611900 | H14: 710400
A15: CHAQUETAS | B15: CLEOTILDE QUINTERO | C15: 109 | D15: 18500 | E15: 2258480 | F15: 0 | G15: 2239980 | H15: 241980
A16: PANTALONES | B16: PABLO ESCOBAR | C16: 360 | D16: 20000 | E16: 8064000 | F16: 322560 | G16: 8366560 | H16: 1186560
A17: PANTALONES | B17: GLADYS QUINTERO | C17: 8000 | D17: 20000 | E17: 179200000 | F17: 7168000 | G17: 186348000 | H17: 26368000 | K17: =E3+F3 -> 0
A18: PANTALONES | B18: MIRIAM QUIROZ | C18: 564 | D18: 20000 | E18: 12633600 | F18: 505344 | G18: 13118944 | H18: 1858944 | K18: =K17-D3 -> -29000
A19: PANTALONES | B19: DEYANIRA ACEVEDO | C19: 220 | D19: 20000 | E19: 4928000 | F19: 0 | G19: 4908000 | H19: 528000 | K19: =D3*C3 -> 3480000
A20: PANTALONES | B20: MONICA PRIETO | C20: 300 | D20: 20000 | E20: 6720000 | F20: 0 | G20: 6700000 | H20: 720000
A21: PIJAMAS | B21: DIANA JIMEMEZ | C21: 420 | D21: 19000 | E21: 8937600 | F21: 0 | G21: 8918600 | H21: 957600 | K21: =K17-K19 -> -3480000
A22: PIJAMAS | B22: GLORIA QUINTERO | C22: 200 | D22: 25000 | E22: 5600000 | F22: 0 | G22: 5575000 | H22: 600000
A23: PIJAMAS | B23: CLAUDIA PUERTA | C23: 465 | D23: 25000 | E23: 13020000 | F23: 0 | G23: 12995000 | H23: 1395000
A24: PIJAMAS | B24: LAURA JIMEMEZ | C24: 45 | D24: 25000 | E24: 1260000 | F24: 0 | G24: 1235000 | H24: 135000
A25: PIJAMAS | B25: TERESA QUINTERO | C25: 700 | D25: 25000 | E25: 19600000 | F25: 0 | G25: 19575000 | H25: 2100000
A27: BONIFICACION
A29: El precio de venta sera el 12% del costo unitario mas el costo unitario. Si la cantidad de PANTALONES es superior a 300, hagale una bonificacion del 4% sobre el EXCEDENTE por el costo.
A33: si la cantidad de CAMISAS es superior a 115, hagale una bonificacion del 6% sobre el EXCEDENTE por el costo.
A36: Al resultado del ejercicio apliquele formato condicional, de la siguiente forma:
B38: Color Azul para los articulos que no recibieron bonificacion
B39: Color Rojo para los articulos que recibieron bonificacion del 6%
B40: Color Amarillo para los articulos que recibieron bonificacion del 4%
A42: Aplique escenarios aquí para ver cual seria la bonificacion con incremetos de 7,5% para quienes producen CAMISAS, Y DEL 5,85% para quienes producen PANTALONES. Este ejercicio lo hara en una hoja nueva a la cual le dara el nombre de escenarios. Los datos para realizar este ejercicio son los que se encuentran en la parte superior.
A47: Aplique SUBTOTALES por ARTICULO y PRODUCTOR; subtotales de suma, maximo, promedios y contar. Este ejercicio lo hara en una hoja nueva a la cual le dara el nombre de subtotales. Los datos para realizar este ejercicio son los que se encuentran en la parte superior.
A51: Genere una macro que haga el calculo de las bonificaciones con los parametros de PANTALONES del 6% y CAMISAS DEL 4%, luego realice un grafico de tipo circular, el numero 4, con las columnas PRODUCTOR y BONIFICACION.
A55: Luego intente hacer una macro que borre todo lo realizado anteriormente. Por ultimo genere los botones para dichas macros, con los nombres de CALCULAR y LIMPIAR
A58: Inserte una hoja, la cual llamara consultas que por medio de la herramienta BuscarV permita hacer consultas por cada uno de los productores, es decir qalseleccionar de unalista desplegable el nombre del productor, muestre toda la informacion que le corresponde a dicho productor. Por ultimo genere una tabla dinamica que muestre los articulos y las cantidades, ademas generara un campo calculado que le adicione a las cantidades el 10% de las cantidades reales.
A64: Cada uno de los ejercicios los hara en una hoja nueva, la cual tendra el nombre de la funcion que se realiza, por ultimo creara una hoja nueva, esta tendra el nombre de menu; en la cual tendra un botones que permitan ir a cada una de las hojas realizadas y por su puesto en cada hoja tambien habra un boton que permita retornar al menu, al finalizar guarde el archivo con su nombre

Sheet ESCENARIOS
A1: ARTICULO | B1: PRODUCTOR | C1: CANTIDAD PRODUCIDA | D1: COSTO UNITARIO | E1: BONIFICACION | F1: PRECIO DE VENTA | G1: UTILIDAD
A2: CAMISAS | B2: MARIELA PUERTA | C2: 120 | D2: 29000 | F2: =(D2*C2) -> 3480000 | G2: =(F2*C2)-(D2*C2)+E2 -> 414120000
A3: CAMISAS | B3: ROCIO QUIROZ | C3: 114 | D3: 22000 | F3: =(D3*C3) -> 2508000 | G3: =(F3*C3)-(D3*C3)+E3 -> 283404000
A4: CHAQUETAS | B4: GLORIA QUINTERO | C4: 250 | D4: 75000 | F4: 18750000 | G4: 4668750000
A5: CHAQUETAS | B5: DIANA JIMEMEZ | C5: 300 | D5: 18500 | F5: 5550000 | G5: 1659450000
A6: PANTALONES | B6: PABLO ESCOBAR | C6: 360 | D6: 20000 | F6: 7200000 | G6: 2584800000
A7: PIJAMAS | B7: DIANA JIMEMEZ | C7: 420 | D7: 19000 | F7: 7980000 | G7: 3343620000
A8: PIJAMAS | B8: GLORIA QUINTERO | C8: 200 | D8: 25000 | F8: 5000000 | G8: 995000000
A11: Aplique escenarios aquí para ver cual seria la bonificacion con incremetos de 7,5% para quienes producen CAMISAS, Y DEL 5,85% para quienes producen PANTALONES.

Sheet MACROS
A2: ARTICULO | B2: PRODUCTOR | C2: CANTIDAD PRODUCIDA | D2: COSTO UNITARIO | E2: PRECIO DE VENTA | F2: Bonificacion | G2: UTILIDAD
A3: CHAQUETAS | B3: GLORIA QUINTERO | C3: 250 | D3: 75000 | E3: =(D3*$J$3)*C3 -> 21000000 | F3: =IF(A3=$I$8,IF(C3>$J$8,E3*$K$8,0),IF(A3=$I$7,IF(C3>$J$7,E3*$K$7,0),0)) -> 0 | G3: =(E3+F3)-D3 -> 20925000 | J3: 1.12
A4: CAMISAS | B4: MARIELA PUERTA | C4: 120 | D4: 29000 | E4: =(D4*$J$3)*C4 -> 3897600 | F4: =IF(A4=$I$8,IF(C4>$J$8,E4*$K$8,0),IF(A4=$I$7,IF(C4>$J$7,E4*$K$7,0),0)) -> 155904 | G4: =(E4+F4)-D4 -> 4024504
A5: PANTALONES | B5: PABLO ESCOBAR | C5: 360 | D5: 20000 | E5: 8064000 | F5: 483840 | G5: 8527840
A6: PIJAMAS | B6: DIANA JIMEMEZ | C6: 420 | D6: 19000 | E6: 8937600 | F6: 0 | G6: 8918600
A7: CAMISAS | B7: ROCIO QUIROZ | C7: 114 | D7: 22000 | E7: 2808960 | F7: 0 | G7: 2786960 | I7: Pantalones | J7: 300 | K7: 0.06
A8: PIJAMAS | B8: GLORIA QUINTERO | C8: 200 | D8: 25000 | E8: 5600000 | F8: 0 | G8: 5575000 | I8: Camisas | J8: 115 | K8: 0.04
A9: CHAQUETAS | B9: DIANA JIMEMEZ | C9: 300 | D9: 18500 | E9: 6216000 | F9: 0 | G9: 6197500
A11: Genere una macro que haga el calculo de las bonificaciones con los parametros de PANTALONES del 6% y CAMISAS DEL 4%, luego realice un grafico de tipo circular, el numero 4, con las columnas PRODUCTOR y BONIFICACION.
A15: Luego intente hacer una macro que borre todo lo realizado anteriormente. Por ultimo genere los botones para dichas macros, con los nombres de CALCULAR y LIMPIAR

Sheet subtotal
A2: ARTICULO | B2: PRODUCTOR | C2: CANTIDAD PRODUCIDA | D2: COSTO UNITARIO | E2: PRECIO DE VENTA | F2: BONIFICACION | G2: UTILIDAD | H2: UTILIDAD UNITARIA
A3: CAMISAS | B3: MARIELA PUERTA | C3: 120 | D3: 29000 | E3: =(D3*$J$3)*C3 -> 3897600 | F3: =IF(A3=$I$8,IF(C3>$J$8,E3*$K$8,0),IF(A3=$I$7,IF(C3>$J$7,E3*$K$7,0),0)) -> 233856 | G3: =(E3+F3)-D3 -> 4102456 | H3: =(E3+F3)-(D3*C3) -> 651456 | J3: 1.12
A4: CAMISAS | B4: ROCIO QUIROZ | C4: 114 | D4: 22000 | E4: =(D4*$J$3)*C4 -> 2808960 | F4: =IF(A4=$I$8,IF(C4>$J$8,E4*$K$8,0),IF(A4=$I$7,IF(C4>$J$7,E4*$K$7,0),0)) -> 0 | G4: =(E4+F4)-D4 -> 2786960 | H4: =(E4+F4)-(D4*C4) -> 300960
A5: CAMISAS | B5: LUCIA JIMEMEZ | C5: 100 | D5: 22000 | E5: 2464000 | F5: 0 | G5: 2442000 | H5: 264000
A6: CAMISAS | B6: PATRICIA ESCOBAR | C6: 125 | D6: 22000 | E6: 3080000 | F6: 184800 | G6: 3242800 | H6: 514800
A7: CAMISAS | B7: DANIELA JIMEMEZ | C7: 600 | D7: 22000 | E7: 14784000 | F7: 887040 | G7: 15649040 | H7: 2471040 | I7: Pantalones | J7: 300 | K7: 0.04
A8: CAMISAS | B8: CARMEN ESCOBAR | C8: 100 | D8: 22000 | E8: 2464000 | F8: 0 | G8: 2442000 | H8: 264000 | I8: Camisas | J8: 115 | K8: 0.06
A9: CAMISAS | B9: SAMIRA RESTREPO | C9: 110 | D9: 22000 | E9: 2710400 | F9: 0 | G9: 2688400 | H9: 290400
A10: CAMISAS | B10: DIONICIA PUERTA | C10: 450 | D10: 22000 | E10: 11088000 | F10: 665280 | G10: 11731280 | H10: 1853280
A11: CHAQUETAS | B11: GLORIA QUINTERO | C11: 250 | D11: 75000 | E11: 21000000 | F11: 0 | G11: 20925000 | H11: 2250000
A12: CHAQUETAS | B12: DIANA JIMEMEZ | C12: 300 | D12: 18500 | E12: 6216000 | F12: 0 | G12: 6197500 | H12: 666000
A13: CHAQUETAS | B13: MARTA QUIROZ | C13: 502 | D13: 18500 | E13: 10401440 | F13: 0 | G13: 10382940 | H13: 1114440
A14: CHAQUETAS | B14: ELSA QUINTERO | C14: 320 | D14: 18500 | E14: 6630400 | F14: 0 | G14: 6611900 | H14: 710400
A15: CHAQUETAS | B15: CLEOTILDE QUINTERO | C15: 109 | D15: 18500 | E15: 2258480 | F15: 0 | G15: 2239980 | H15: 241980
A16: PANTALONES | B16: PABLO ESCOBAR | C16: 360 | D16: 20000 | E16: 8064000 | F16: 322560 | G16: 8366560 | H16: 1186560
A17: PANTALONES | B17: GLADYS QUINTERO | C17: 8000 | D17: 20000 | E17: 179200000 | F17: 7168000 | G17: 186348000 | H17: 26368000 | K17: =E3+F3 -> 4131456
A18: PANTALONES | B18: MIRIAM QUIROZ | C18: 564 | D18: 20000 | E18: 12633600 | F18: 505344 | G18: 13118944 | H18: 1858944 | K18: =K17-D3 -> 4102456
A19: PANTALONES | B19: DEYANIRA ACEVEDO | C19: 220 | D19: 20000 | E19: 4928000 | F19: 0 | G19: 4908000 | H19: 528000 | K19: =D3*C3 -> 3480000
A20: PANTALONES | B20: MONICA PRIETO | C20: 300 | D20: 20000 | E20: 6720000 | F20: 0 | G20: 6700000 | H20: 720000
A21: PIJAMAS | B21: DIANA JIMEMEZ | C21: 420 | D21: 19000 | E21: 8937600 | F21: 0 | G21: 8918600 | H21: 957600 | K21: =K17-K19 -> 651456
A22: PIJAMAS | B22: GLORIA QUINTERO | C22: 200 | D22: 25000 | E22: 5600000 | F22: 0 | G22: 5575000 | H22: 600000
A23: PIJAMAS | B23: CLAUDIA PUERTA | C23: 465 | D23: 25000 | E23: 13020000 | F23: 0 | G23: 12995000 | H23: 1395000
A24: PIJAMAS | B24: LAURA JIMEMEZ | C24: 45 | D24: 25000 | E24: 1260000 | F24: 0 | G24: 1235000 | H24: 135000
A25: PIJAMAS | B25: TERESA QUINTERO | C25: 700 | D25: 25000 | E25: 19600000 | F25: 0 | G25: 19575000 | H25: 2100000
A27: suma | C27: =SUBTOTAL(9,C3:C25) -> 14474 | D27: 551000 | E27: 349766480 | F27: 9966880 | G27: 359182360 | H27: 47441860
A29: maximo | C29: =SUBTOTAL(4,C3:C25) -> 8000 | D29: 75000 | E29: 179200000 | F29: 7168000 | G29: 186348000 | H29: 26368000
A31: promedio | C31: =SUBTOTAL(1,C3:C25) -> 629.3043478 | D31: =SUBTOTAL(1,D3:D25) -> 23956.52174 | E31: 15207238.26 | F31: 433342.6087 | G31: 15616624.35 | H31: 2062689.565
A33: conteo | C33: =SUBTOTAL(2,C3:C25) -> 23 | D33: =SUBTOTAL(2,D3:D25) -> 23 | E33: 23 | F33: 23 | G33: 23 | H33: 23

Sheet consultas por h.
A2: ARTICULO | B2: PRODUCTOR | C2: CANTIDAD PRODUCIDA | D2: COSTO UNITARIO | E2: PRECIO DE VENTA | F2: BONIFICACION | G2: UTILIDAD
A3: PRECIO DE VENTA | B3: =VLOOKUP($A$3,'Funcion Si y formato condiciona'!A3:H25,2) -> TERESA QUINTERO | C3: =VLOOKUP($A$3,'Funcion Si y formato condiciona'!A2:H25,3) -> 700 | D3: =VLOOKUP($A$3,'Funcion Si y formato condiciona'!A3:H25,4) -> 25000 | E3: =VLOOKUP($A$3,'Funcion Si y formato condiciona'!A3:H25,5) -> 19600000 | F3: =VLOOKUP($A$3,'Funcion Si y formato condiciona'!A3:H25,6) -> 0 | G3: =VLOOKUP($A$3,'Funcion Si y formato condiciona'!A3:H25,7) -> 19575000
